bitfinex-derivatives/quotes_BTCF0:USTF0_20250722
["timestamp","ask_amount","ask_price","bid_price","bid_amount"]
[1753144129978,1.08855164,117580.0,117570.0,0.38838364]
[1753144130179,1.08855164,117580.0,117570.0,0.33414364]
[1753144130180,1.25857304,117580.0,117570.0,0.33414364]
[1753144130385,1.25857304,117580.0,117570.0,0.37997667]
[1753144130778,0.75120087,117580.0,117570.0,0.37997667]
[1753144131081,1.26696251,117580.0,117570.0,0.37997667]
[1753144131476,1.25857304,117580.0,117570.0,0.37997667]
[1753144131677,1.25857304,117580.0,117570.0,0.40945667]
[1753144132285,1.2670194,117580.0,117570.0,0.40945667]
[1753144132590,1.25857304,117580.0,117570.0,0.40945667]
[1753144133880,1.08855164,117580.0,117570.0,0.40945667]
[1753144134381,1.08855164,117580.0,117570.0,0.36362364]
[1753144134579,1.08855164,117580.0,117570.0,0.40944668]
[1753144134783,0.57279,117580.0,117570.0,0.40944668]
[1753144134978,1.08855164,117580.0,117570.0,0.40944668]
[1753144135477,1.09711263,117580.0,117570.0,0.40944668]
[1753144135678,1.09711263,117580.0,117570.0,0.36362364]
[1753144135983,1.08855164,117580.0,117570.0,0.4094444]
[1753144138886,1.25857304,117580.0,117570.0,0.4094444]
[1753144139183,1.08855164,117580.0,117570.0,0.4094444]
[1753144139584,1.08855164,117580.0,117570.0,0.43997772]
[1753144141487,1.25857304,117580.0,117570.0,0.43997772]
[1753144143383,1.51645386,117580.0,117570.0,0.38971772]
[1753144143688,1.25857304,117580.0,117570.0,0.31155696]
[1753144143889,1.51645386,117580.0,117570.0,0.31155696]
[1753144144188,1.25857304,117580.0,117570.0,0.34114696]
[1753144146790,1.25857304,117580.0,117570.0,0.36201696]
[1753144147090,1.25857304,117580.0,117570.0,0.37538696]
[1753144147489,1.08855164,117580.0,117570.0,0.39149696]
[1753144148193,1.25857304,117580.0,117570.0,0.39149696]
[1753144148395,1.08855164,117580.0,117570.0,0.39149696]
[1753144148593,0.80576082,117580.0,117570.0,1.05939854]
[1753144148891,1.39004082,117580.0,117570.0,1.05939854]
[1753144150395,1.13216,117580.0,117570.0,1.05939854]
[1753144150596,1.39004082,117580.0,117570.0,1.05939854]
[1753144151496,1.35445082,117580.0,117570.0,1.02886522]
[1753144152793,0.99365082,117580.0,117570.0,1.02886522]
[1753144153496,0.41379082,117580.0,117570.0,1.61314522]
[1753144153997,0.41827082,117580.0,117570.0,1.61314522]
[1753144154896,0.16039,117580.0,117570.0,1.61314522]
[1753144155092,0.41827082,117580.0,117570.0,1.61314522]
[1753144156292,0.77907082,117580.0,117570.0,1.61314522]
[1753144156789,0.78850082,117580.0,117570.0,1.61314522]
[1753144163796,0.77907082,117580.0,117570.0,1.61314522]
[1753144164501,0.78850082,117580.0,117570.0,1.61314522]
[1753144165203,0.53062,117580.0,117570.0,1.61314522]
[1753144165401,0.78850082,117580.0,117570.0,1.61314522]
[1753144165598,0.42770082,117580.0,117570.0,1.61314522]
[1753144166495,0.41827082,117580.0,117570.0,1.61314522]
[1753144168303,0.16039,117580.0,117570.0,1.61314522]
[1753144168703,0.11542,117580.0,117570.0,1.87102604]
[1753144169002,0.11542,117580.0,117570.0,2.23182604]
[1753144169203,0.11542,117580.0,117570.0,2.27034522]
[1753144169899,0.11542,117580.0,117570.0,2.22452446]
[1753144170103,0.11542,117580.0,117570.0,2.48240528]
[1753144170308,0.11542,117580.0,117570.0,2.54356345]
[1753144173304,0.0763498,117580.0,117570.0,2.5013734]
[1753144173703,0.0763498,117580.0,117570.0,2.56253157]
[1753144174508,0.0236698,117580.0,117570.0,2.98263557]
[1753144175202,1e-07,117580.0,117570.0,2.98263557]
[1753144175508,0.22385,117600.0,117590.0,0.257397]
[1753144175807,0.15385,117600.0,117590.0,1.48502633]
[1753144176209,0.12943,117600.0,117590.0,1.48502633]
[1753144176708,0.15385,117600.0,117590.0,1.48502633]
[1753144176908,0.15585,117600.0,117590.0,1.48502633]
[1753144177110,0.15885,117600.0,117590.0,1.48502633]
[1753144179300,0.15885,117600.0,117590.0,1.49382335]
[1753144185817,0.13443,117600.0,117590.0,1.49382335]
[1753144186517,0.15758,117600.0,117590.0,1.49382335]
[1753144187814,0.125,117600.0,117590.0,1.49382335]
[1753144188507,0.13432,117600.0,117590.0,1.49382335]
[1753144189009,0.15747,117600.0,117590.0,1.49382335]
[1753144192321,0.15747,117600.0,117590.0,1.75170417]
[1753144192921,0.13432,117600.0,117590.0,1.75170417]
[1753144193321,0.13432,117600.0,117590.0,1.49382335]
[1753144193723,0.15747,117600.0,117590.0,1.49382335]
[1753144195817,0.15747,117600.0,117590.0,1.85462335]
[1753144196324,0.15747,117600.0,117590.0,2.11250417]
[1753144197822,0.13432,117600.0,117590.0,1.85462335]
[1753144198725,0.13432,117600.0,117590.0,2.11250417]
[1753144199228,0.13432,117600.0,117590.0,2.06679566]
[1753144199526,0.0727537,117600.0,117590.0,2.06679566]
[1753144200321,0.0727537,117600.0,117590.0,2.08964702]
[1753144200527,0.0959037,117600.0,117590.0,2.08964702]
[1753144200930,0.0959037,117600.0,117590.0,1.57388538]
[1753144201134,0.0959037,117600.0,117590.0,1.8317662]
[1753144201726,0.0959037,117600.0,117590.0,1.57388538]
[1753144201930,0.0959037,117600.0,117590.0,1.83938333]
[1753144202527,0.0959037,117600.0,117590.0,1.58150251]
[1753144202732,0.0959037,117600.0,117590.0,1.83938333]
[1753144203735,0.0959037,117600.0,117590.0,1.88508606]
[1753144204133,0.0959037,117600.0,117590.0,1.62720524]
[1753144204330,0.0959037,117600.0,117590.0,1.88508606]
[1753144206435,0.0959037,117600.0,117590.0,1.62720524]
[1753144206637,0.0959037,117600.0,117590.0,1.88508606]
[1753144208944,0.0959037,117600.0,117590.0,1.80891484]
[1753144209144,0.0959037,117600.0,117590.0,1.83942364]
[1753144210243,0.0959037,117600.0,117590.0,1.80891484]
[1753144210439,0.0959037,117600.0,117590.0,1.55103402]
[1753144210840,0.0959037,117600.0,117590.0,1.80891484]
[1753144211348,0.0959037,117600.0,117590.0,1.83942553]
[1753144211547,0.0959037,117600.0,117590.0,1.58154471]
[1753144211741,0.1003237,117600.0,117590.0,1.58154471]
[1753144212044,0.1154037,117600.0,117590.0,1.85461757]
[1753144212240,0.1154037,117600.0,117590.0,0.62031973]
[1753144212241,1.04382534,117600.0,117590.0,0.62031973]
[1753144212442,1.04382534,117600.0,117590.0,0.42040025]
[1753144212443,1.21381784,117600.0,117590.0,0.42040025]
[1753144212742,1.21381784,117600.0,117590.0,0.24921752]
[1753144212947,1.79733784,117600.0,117590.0,0.22340538]
[1753144213147,1.79733784,117600.0,117590.0,0.19289486]
[1753144213447,1.79733784,117600.0,117590.0,0.22340538]
[1753144213642,1.79733784,117600.0,117590.0,0.22408486]
[1753144213946,1.62734534,117600.0,117590.0,0.24502486]
[1753144214147,1.79733794,117600.0,117590.0,0.24502486]
[1753144215247,1.79733794,117600.0,117590.0,0.201197]
[1753144215446,1.79733794,117600.0,117590.0,0.170007]
[1753144219844,1.62734534,117600.0,117590.0,0.220037]
[1753144220045,1.79733764,117600.0,117590.0,0.220037]
[1753144223851,1.79733764,117600.0,117590.0,0.199967]
[1753144225251,0.2654568,117590.0,117580.0,0.34307546]
[1753144225548,0.99386762,117590.0,117580.0,0.34307546]
[1753144226049,1.00255743,117590.0,117580.0,0.34307546]
[1753144226245,0.74467661,117590.0,117580.0,0.34307546]
[1753144226749,0.99486762,117590.0,117580.0,0.34307546]
[1753144227052,0.99586762,117590.0,117580.0,0.34307546]
[1753144227351,0.99586762,117590.0,117580.0,0.34302733]
[1753144231952,0.99586762,117590.0,117580.0,0.3201876]
[1753144233056,0.7379868,117590.0,117580.0,0.3201876]
[1753144233252,0.99586762,117590.0,117580.0,0.3201876]
[1753144234054,0.7379868,117590.0,117580.0,0.3201876]
[1753144234255,0.99586762,117590.0,117580.0,0.3201876]
[1753144236655,0.99517385,117590.0,117580.0,0.3201876]
[1753144239155,0.73729303,117590.0,117580.0,0.3201876]
[1753144239353,0.99517385,117590.0,117580.0,0.3201876]
[1753144241957,0.99517385,117590.0,117580.0,0.35069812]
[1753144244161,0.99517385,117590.0,117580.0,0.39640085]
[1753144244460,0.99517385,117590.0,117580.0,0.35069812]
[1753144244962,0.99517385,117590.0,117580.0,0.39640085]
[1753144245261,1.25305467,117590.0,117580.0,0.33123085]
[1753144246358,0.99517385,117590.0,117580.0,0.33123085]
[1753144246558,0.99517385,117590.0,117580.0,0.36305085]
[1753144247162,0.73729303,117590.0,117580.0,0.36305085]
[1753144247363,0.99517385,117590.0,117580.0,0.36305085]
[1753144248363,0.99517385,117590.0,117580.0,0.38372085]
[1753144248665,0.99517385,117590.0,117580.0,0.39875085]
[1753144250760,0.82586082,117590.0,117580.0,0.39875085]
[1753144251863,0.56798,117590.0,117580.0,0.65663167]
[1753144252064,0.82586082,117590.0,117580.0,0.68032167]
[1753144252954,0.82586082,117590.0,117580.0,0.64981115]
[1753144254166,0.1364,117590.0,117580.0,1.22769197]
[1753144255466,0.11173,117590.0,117580.0,1.81105197]
[1753144255868,0.11173,117590.0,117580.0,2.17185197]
[1753144257158,0.11173,117590.0,117580.0,2.42973279]
[1753144257159,0.0697518,117590.0,117580.0,2.42973279]
[1753144257364,0.21327,117610.0,117600.0,0.1699923]
[1753144257563,0.12327,117610.0,117600.0,1.71083175]
[1753144257763,0.14272,117610.0,117600.0,1.71083175]
[1753144258266,0.14272,117610.0,117600.0,2.08682667]
[1753144258667,0.14272,117610.0,117600.0,1.72602667]
[1753144259263,0.14572,117610.0,117600.0,1.72602667]
[1753144259858,0.19604,117610.0,117600.0,1.72602667]
[1753144260266,0.45392082,117610.0,117600.0,1.21026503]
[1753144260463,0.45392082,117610.0,117600.0,1.46814585]
[1753144261170,0.45392082,117610.0,117600.0,1.4985918]
[1753144261364,0.45392082,117610.0,117600.0,0.9152318]
[1753144261566,0.45392082,117610.0,117600.0,1.19492825]
[1753144261767,0.81472082,117610.0,117600.0,0.85123825]
[1753144262071,1.24257954,117610.0,117600.0,0.24531749]
[1753144262368,1.24257954,117610.0,117600.0,0.19282749]
[1753144263170,1.07059471,117610.0,117600.0,0.19282749]
[1753144266171,1.41437152,117610.0,117600.0,0.1604923]
[1753144266368,1.07059471,117610.0,117600.0,0.1604923]
[1753144270673,0.2092923,117600.0,117590.0,0.27783009]
[1753144270869,1.67988911,117600.0,117590.0,0.23533059]
[1753144271271,1.09660911,117600.0,117590.0,0.23533059]
[1753144271472,1.67988911,117600.0,117590.0,0.23533059]
[1753144271769,1.68088911,117600.0,117590.0,0.29759654]
[1753144273070,1.68088911,117600.0,117590.0,0.26577654]
[1753144275377,1.68088911,117600.0,117590.0,0.2124954]
[1753144283180,0.2754868,117590.0,117580.0,0.2601618]
[1753144283386,1.10006361,117590.0,117580.0,0.2018412]
[1753144283789,1.10006361,117590.0,117580.0,0.2213612]
[1753144284591,1.10006361,117590.0,117580.0,0.2223612]
[1753144284890,1.10006361,117590.0,117580.0,0.2381912]
[1753144285190,1.01417158,117590.0,117580.0,0.2381912]
[1753144285692,1.27205636,117590.0,117580.0,0.001]
[1753144286182,0.10548,117560.0,117550.0,0.30766269]
[1753144286391,1.85537976,117560.0,117550.0,0.30766269]
[1753144287284,1.68362453,117560.0,117550.0,0.30766269]
[1753144287485,1.68362453,117560.0,117550.0,0.30768043]
[1753144288189,1.68362453,117560.0,117550.0,0.3770049]
[1753144290791,1.3396102,117560.0,117550.0,0.35415197]
[1753144290985,1.68362453,117560.0,117550.0,0.37699918]
[1753144291285,1.51357433,117560.0,117550.0,0.40184918]
[1753144291496,1.51357433,117560.0,117550.0,0.41145918]
[1753144291791,1.51357433,117560.0,117550.0,0.4343147]
[1753144291985,1.68362453,117560.0,117550.0,0.4343147]
[1753144293796,1.51357433,117560.0,117550.0,0.4343147]
[1753144294393,1.51357433,117560.0,117550.0,0.4247047]
[1753144294790,1.51357433,117560.0,117550.0,0.4018547]
[1753144295294,1.51357433,117560.0,117550.0,0.35615197]
[1753144295488,1.68362423,117560.0,117550.0,0.35615197]
[1753144295886,2.02763856,117560.0,117550.0,0.31923697]
[1753144296093,2.02763856,117560.0,117550.0,0.28708697]
[1753144296293,1.68362423,117560.0,117550.0,0.28708697]
[1753144299899,1.3396099,117560.0,117550.0,0.28708717]
[1753144300100,1.68362423,117560.0,117550.0,0.28708717]
[1753144302000,1.68362423,117560.0,117550.0,0.11702267]
[1753144302199,1.68362423,117560.0,117550.0,0.28708717]
[1753144302401,1.68362423,117560.0,117550.0,0.24138897]
[1753144302899,2.02763856,117560.0,117550.0,0.004]
[1753144314305,1.44435856,117560.0,117550.0,0.004]
[1753144314611,1.10034423,117560.0,117550.0,0.2388645]
[1753144314806,1.68374423,117560.0,117550.0,0.2433245]
[1753144315001,1.10034423,117560.0,117550.0,0.2433245]
[1753144315398,1.68374423,117560.0,117550.0,0.2433245]
[1753144315603,1.68374423,117560.0,117550.0,0.2661845]
[1753144317107,1.68374423,117560.0,117550.0,0.2433245]
[1753144319811,1.68374423,117560.0,117550.0,0.2661845]
[1753144320707,1.68374423,117560.0,117550.0,0.2433245]
[1753144327117,1.3397299,117560.0,117550.0,0.2433245]
[1753144327414,1.68374423,117560.0,117550.0,0.2433245]
[1753144331722,1.10034423,117560.0,117550.0,0.5533245]
[1753144332027,1.68370423,117560.0,117550.0,0.60817984]
[1753144333030,1.68370423,117560.0,117550.0,0.59906984]
[1753144333426,1.68370423,117560.0,117550.0,0.28906984]
[1753144333627,1.68370423,117560.0,117550.0,0.65906984]
[1753144334526,1.68370423,117560.0,117550.0,0.28906984]
[1753144334924,1.68370423,117560.0,117550.0,0.26620984]
[1753144335132,1.68370423,117560.0,117550.0,0.59620984]
[1753144335330,1.68370423,117560.0,117550.0,0.26620984]
[1753144336031,2.02771856,117560.0,117550.0,0.02688534]
[1753144336231,2.02771856,117560.0,117550.0,0.004]
[1753144342635,1.44435856,117560.0,117550.0,0.1740645]
[1753144342836,1.10034423,117560.0,117550.0,0.1740645]
[1753144343036,1.68366423,117560.0,117550.0,0.1740645]
[1753144343233,1.68366423,117560.0,117550.0,0.02688534]
[1753144343427,1.68366423,117560.0,117550.0,0.004]
[1753144345135,2.02767856,117560.0,117550.0,0.004]
[1753144345739,1.68366423,117560.0,117550.0,0.004]
[1753144346739,2.02767856,117560.0,117550.0,0.004]
[1753144347136,1.68366423,117560.0,117550.0,0.004]
[1753144347838,2.02767856,117560.0,117550.0,0.004]
[1753144352344,0.2658745,117550.0,117540.0,0.08986419]
[1753144352542,1.09934883,117550.0,117540.0,0.25994319]
[1753144353046,1.09934883,117550.0,117540.0,0.08986419]
[1753144353549,1.09934883,117550.0,117540.0,0.09286419]
[1753144353843,1.09934883,117550.0,117540.0,0.26294319]
[1753144354033,1.09934883,117550.0,117540.0,0.09486419]
[1753144354745,1.09934883,117550.0,117540.0,0.24202027]
[1753144355444,1.09934883,117550.0,117540.0,0.09486419]
[1753144356446,1.09934883,117550.0,117540.0,0.02792292]
[1753144356647,1.09934883,117550.0,117540.0,0.005]
[1753144357640,0.194659,117540.0,117530.0,0.02292292]
[1753144357853,1.68260333,117540.0,117530.0,0.02292292]
[1753144358853,1.68360333,117540.0,117530.0,0.02592292]
[1753144360754,1.68360333,117540.0,117530.0,0.02892292]
[1753144362351,1.10036333,117540.0,117530.0,0.02892292]
[1753144362556,1.68360333,117540.0,117530.0,0.02892292]
[1753144369556,1.68360333,117540.0,117530.0,0.006]
[1753144377262,2.11413311,117540.0,117530.0,0.006]
[1753144377555,2.11413311,117540.0,117510.0,0.2507821]
[1753144377556,0.07281,117520.0,117510.0,0.06907]
[1753144377758,0.07281,117520.0,117500.0,0.38440477]
[1753144377759,0.1746224,117510.0,117500.0,0.30889222]
[1753144377957,1.27966514,117510.0,117500.0,0.43033292]
[1753144378165,1.27966514,117510.0,117500.0,0.11292292]
[1753144378462,1.27966514,117510.0,117500.0,0.09]
[1753144379562,1.27966514,117510.0,117500.0,0.12103]
[1753144380661,1.27966514,117510.0,117500.0,0.3105769]
[1753144380864,1.43460137,117510.0,117500.0,0.65738982]
[1753144381062,1.60472377,117510.0,117500.0,0.65738982]
[1753144381262,1.69082548,117510.0,117500.0,0.6344669]
[1753144381862,1.69082548,117510.0,117500.0,0.72540412]
[1753144383554,1.69082548,117510.0,117500.0,0.7024812]
[1753144383758,1.69082548,117510.0,117500.0,0.4424812]
[1753144384062,1.69082548,117510.0,117500.0,0.46540412]
[1753144384364,1.69082548,117510.0,117500.0,0.4424812]
[1753144384768,1.69082548,117510.0,117500.0,0.4175612]
[1753144385356,1.69082548,117510.0,117500.0,0.2474243]
[1753144385965,1.69082548,117510.0,117500.0,0.4175612]
[1753144386162,1.69082548,117510.0,117500.0,0.2474243]
[1753144386367,1.69082548,117510.0,117500.0,0.4175612]
[1753144386867,1.69082548,117510.0,117500.0,0.2474243]
[1753144387367,1.69082548,117510.0,117500.0,0.4175612]
[1753144390469,1.3465424,117510.0,117500.0,0.4175612]
[1753144390769,1.69082548,117510.0,117500.0,0.4175612]
[1753144392968,1.10758548,117510.0,117500.0,0.4175612]
[1753144393170,1.69082548,117510.0,117500.0,0.4175612]
[1753144393761,1.10758548,117510.0,117500.0,0.4175612]
[1753144394059,1.69082548,117510.0,117500.0,0.4175612]
[1753144394965,1.69082548,117510.0,117500.0,0.2390843]
[1753144395561,1.3465424,117510.0,117500.0,0.2184543]
[1753144395766,1.69082548,117510.0,117500.0,0.1700143]
[1753144397168,1.3465424,117510.0,117500.0,0.1700143]
[1753144397374,1.3465424,117510.0,117500.0,0.71362016]
[1753144397675,0.7633024,117510.0,117500.0,0.42362016]
[1753144397875,1.69174548,117510.0,117500.0,0.42362016]
[1753144399265,1.69174548,117510.0,117500.0,0.68194016]
[1753144400677,1.69174548,117510.0,117500.0,0.43362016]
[1753144401669,1.69174548,117510.0,117500.0,0.26348326]
[1753144401868,1.69174548,117510.0,117500.0,0.2405743]
[1753144402672,1.69174548,117510.0,117500.0,0.2193943]
[1753144403884,1.69174548,117510.0,117500.0,0.1700143]
[1753144405583,1.69174548,117510.0,117500.0,0.002]
[1753144406080,0.2389569,117500.0,117490.0,0.09138793]
[1753144406378,1.10604998,117500.0,117490.0,0.02290896]
[1753144406779,1.10604998,117500.0,117490.0,0.19306026]
[1753144406981,1.10604998,117500.0,117490.0,0.22273026]
[1753144407175,1.10704998,117500.0,117490.0,0.27393901]
[1753144407381,1.70144998,117500.0,117490.0,0.29511901]
[1753144407779,2.04573306,117500.0,117480.0,0.0753682]
[1753144407979,1.32034746,117490.0,117480.0,0.03060769]
[1753144408282,1.32034746,117490.0,117480.0,0.10016962]
[1753144408283,1.44034746,117490.0,117480.0,0.10016962]
[1753144408581,0.2709958,117480.0,117470.0,0.02967]
[1753144408784,2.02764196,117480.0,117470.0,0.02967]
[1753144409175,0.2107303,117470.0,117460.0,0.33657243]
[1753144409379,0.91591308,117470.0,117460.0,0.69657243]
[1753144409580,1.08609328,117470.0,117460.0,0.69657243]
[1753144409888,0.7418102,117470.0,117460.0,0.67336243]
[1753144410182,0.7418102,117470.0,117460.0,0.66504243]
[1753144410183,1.08609328,117470.0,117460.0,0.66504243]
[1753144410584,1.08709328,117470.0,117460.0,0.66504243]
[1753144411377,1.09554255,117470.0,117460.0,0.42429243]
[1753144411678,1.09554255,117470.0,117460.0,0.45396243]
[1753144411879,1.09554255,117470.0,117460.0,0.69228198]
[1753144412274,1.09554255,117470.0,117460.0,0.52208728]
[1753144412471,1.09554255,117470.0,117460.0,0.49241728]
[1753144413284,1.09554255,117470.0,117460.0,0.13241728]
[1753144414876,1.09554255,117470.0,117460.0,0.30261198]
[1753144415280,1.09554255,117470.0,117460.0,0.33228198]
[1753144415779,1.09554255,117470.0,117460.0,0.16208728]
[1753144417084,1.09554255,117470.0,117460.0,0.13241728]
[1753144417378,1.09554255,117470.0,117460.0,0.11382305]
[1753144417578,0.1859323,117460.0,117450.0,0.04585248]
[1753144417778,2.11357296,117460.0,117450.0,0.04585248]
[1753144418781,1.76928988,117460.0,117450.0,0.04585248]
[1753144419376,1.76928988,117460.0,117430.0,0.15914727]
[1753144419377,0.2710535,117440.0,117430.0,0.15914727]
[1753144419681,2.41145966,117440.0,117430.0,0.51418727]
[1753144419881,2.41145966,117440.0,117430.0,0.4472754]
[1753144420083,1.81121966,117440.0,117430.0,0.4472754]
[1753144420283,2.41133966,117440.0,117430.0,0.4472754]
[1753144420480,2.41233966,117440.0,117430.0,0.4472754]
[1753144420681,2.41233966,117440.0,117430.0,0.4482754]
[1753144421187,2.41233966,117440.0,117430.0,0.381]
[1753144421383,2.41233966,117440.0,117430.0,0.141]
[1753144423976,2.41233966,117440.0,117430.0,0.001]
[1753144426382,1.81221966,117440.0,117430.0,0.2189278]
[1753144426587,2.06713658,117440.0,117430.0,0.2708278]
[1753144426789,1.7226935,117440.0,117430.0,0.270828]
[1753144426985,2.06697658,117440.0,117430.0,0.270828]
[1753144427389,2.06697658,117440.0,117430.0,0.246458]
[1753144429089,2.06697658,117440.0,117430.0,0.06766]
[1753144429286,2.41125966,117440.0,117430.0,0.001]
[1753144431988,0.2714625,117420.0,117410.0,0.02775]
[1753144432182,0.262387,117410.0,117400.0,0.15189908]
[1753144432384,1.09656008,117410.0,117400.0,0.51189908]
[1753144433189,1.09656008,117410.0,117400.0,0.66329835]
[1753144433384,1.09656008,117410.0,117400.0,0.66829835]
[1753144433787,1.09656008,117410.0,117400.0,0.49801685]
[1753144434291,1.09756008,117410.0,117400.0,0.49801685]
[1753144434688,1.09756008,117410.0,117400.0,0.365]
[1753144436691,1.106264,117410.0,117400.0,0.365]
[1753144436993,1.106264,117410.0,117400.0,0.005]
[1753144437489,0.210966,117390.0,117380.0,0.2451187]
[1753144437686,1.45738908,117390.0,117380.0,0.32]
[1753144437886,0.10121,117370.0,117360.0,0.47362564]
[1753144438090,1.52661308,117370.0,117360.0,0.79362508]
[1753144438390,1.52661308,117370.0,117360.0,0.74782043]
[1753144438888,1.69693808,117370.0,117360.0,0.74782043]
[1753144439089,1.69693808,117370.0,117360.0,0.81685525]
[1753144439484,0.991855,117370.0,117360.0,0.81685525]
[1753144439692,1.69693808,117370.0,117360.0,0.81685525]
[1753144439885,1.69693808,117370.0,117360.0,0.82185525]
[1753144440286,0.14371,117370.0,117360.0,0.82185525]
[1753144440486,0.72148,117370.0,117360.0,1.69734633]
[1753144440686,0.72168,117370.0,117360.0,1.52693833]
[1753144440995,0.914715,117370.0,117360.0,0.82185525]
[1753144441286,0.914715,117370.0,117360.0,0.79131572]
[1753144441491,0.944845,117370.0,117360.0,0.79131572]
[1753144441682,0.344165,117370.0,117360.0,0.79131572]
[1753144441885,0.945085,117370.0,117360.0,0.79131572]
[1753144442794,1.33773808,117370.0,117360.0,0.79131572]
[1753144443989,1.33773808,117370.0,117360.0,0.78831572]
[1753144444384,0.993455,117370.0,117360.0,0.78831572]
[1753144444591,1.33773808,117370.0,117360.0,0.78831572]
[1753144446196,0.82313,117370.0,117360.0,0.78831572]
[1753144446392,0.14371,117370.0,117360.0,1.4933988]
[1753144446595,0.72176,117370.0,117360.0,1.4933988]
[1753144446796,0.121,117370.0,117360.0,1.4933988]
[1753144446996,0.14371,117370.0,117360.0,1.4933988]
[1753144447297,0.14371,117370.0,117360.0,1.14911572]
[1753144447491,0.17384,117370.0,117360.0,1.14911572]
[1753144447693,0.22221,117370.0,117360.0,0.78831572]
[1753144447994,0.19347,117370.0,117360.0,1.38915572]
[1753144448300,0.17384,117370.0,117360.0,0.78831572]
[1753144448595,0.121,117370.0,117360.0,1.4933988]
[1753144448797,0.121,117370.0,117360.0,1.1325988]
[1753144449204,0.14371,117370.0,117360.0,1.1325988]
[1753144449889,0.16032,117370.0,117360.0,1.1325988]
[1753144450096,0.17384,117370.0,117360.0,0.78831572]
[1753144450698,0.16032,117370.0,117360.0,1.14911572]
[1753144451204,0.16032,117370.0,117360.0,1.4933988]
[1753144451699,0.16032,117370.0,117360.0,1.1325988]
[1753144452101,0.16941,117370.0,117360.0,1.1325988]
[1753144452298,0.16941,117370.0,117360.0,0.78831572]
[1753144453099,0.16941,117370.0,117360.0,1.08471572]
[1753144453304,0.16032,117370.0,117360.0,1.08471572]
[1753144453504,0.14371,117370.0,117360.0,1.08471572]
[1753144453905,0.14371,117370.0,117360.0,1.4289988]
[1753144455408,0.14371,117370.0,117360.0,1.08471572]
[1753144455812,0.16791,117370.0,117360.0,1.08471572]
[1753144456109,0.17233,117370.0,117360.0,1.68563572]
[1753144456905,0.342655,117370.0,117360.0,1.08471572]
[1753144457210,0.342655,117370.0,117360.0,1.68563572]
[1753144457211,0.757005,117370.0,117360.0,1.68563572]
[1753144457407,1.10128808,117370.0,117360.0,1.68563572]
[1753144457609,0.93096308,117370.0,117360.0,1.68563572]
[1753144458720,0.58668,117370.0,117360.0,1.68563572]
[1753144458916,0.757005,117370.0,117360.0,1.08471572]
[1753144459105,1.10128808,117370.0,117360.0,0.78831572]
[1753144459312,1.10128808,117370.0,117360.0,0.76414922]
[1753144459516,1.70232808,117370.0,117360.0,0.76414922]
[1753144459709,1.70232808,117370.0,117360.0,0.75558922]
[1753144461421,0.93096308,117370.0,117360.0,0.75558922]
[1753144463818,1.54912182,117370.0,117360.0,0.76408922]
[1753144466824,1.71944682,117370.0,117360.0,0.76408922]
[1753144467822,1.71944682,117370.0,117360.0,0.75558922]
[1753144468116,0.77392374,117370.0,117360.0,0.75358922]
[1753144468322,1.72032682,117370.0,117360.0,0.75358922]
[1753144469219,1.72032682,117370.0,117360.0,0.76208922]
[1753144471020,1.71590682,117370.0,117360.0,0.76208922]
[1753144471227,1.71590682,117370.0,117360.0,0.71950522]
[1753144471428,1.69898808,117370.0,117360.0,0.71100522]
[1753144471731,1.69866808,117370.0,117360.0,0.55957782]
[1753144472723,1.09786808,117370.0,117360.0,0.55957782]
[1753144472927,1.69898808,117370.0,117360.0,0.55957782]
[1753144474035,1.09786808,117370.0,117360.0,0.58902782]
[1753144474237,1.52898308,117370.0,117360.0,0.58902782]
[1753144474434,1.69930808,117370.0,117360.0,0.60741782]
[1753144475139,0.93196308,117370.0,117360.0,0.62707782]
[1753144475327,1.53336308,117370.0,117360.0,0.63557782]
[1753144475838,1.70368778,117370.0,117360.0,0.63557782]
[1753144476139,1.10228778,117370.0,117360.0,0.63557782]
[1753144476443,1.53340308,117370.0,117360.0,0.63557782]
[1753144476641,1.70372778,117370.0,117360.0,0.566543]
[1753144476837,1.34292778,117370.0,117360.0,0.566543]
[1753144477036,1.70372778,117370.0,117360.0,0.566543]
[1753144478835,1.10228778,117370.0,117360.0,0.566543]
[1753144479041,0.93196308,117370.0,117360.0,0.566543]
[1753144479241,1.70328788,117370.0,117360.0,0.566543]
[1753144479542,1.70328788,117370.0,117360.0,0.63322269]
[1753144479735,1.70328788,117370.0,117360.0,0.62472269]
[1753144480441,1.34248788,117370.0,117360.0,0.63322269]
[1753144480637,1.53296308,117370.0,117360.0,0.63322269]
[1753144480838,1.53296308,117370.0,117360.0,0.65712269]
[1753144482037,0.77831,117370.0,117360.0,1.39284653]
[1753144482244,0.74997,117370.0,117360.0,1.39284653]
[1753144482435,0.74997,117370.0,117360.0,1.04856345]
[1753144483737,0.14913,117370.0,117360.0,1.04856345]
[1753144484239,0.12642,117370.0,117360.0,1.04856345]
[1753144484443,0.12642,117370.0,117360.0,1.39284653]
[1753144485138,0.12642,117370.0,117360.0,2.16401453]
[1753144486240,0.12642,117370.0,117360.0,2.20981918]
[1753144486444,0.12642,117370.0,117360.0,2.20983062]
[1753144486631,0.12642,117370.0,117360.0,1.60907062]
[1753144486835,0.12642,117370.0,117360.0,2.20995062]
[1753144487237,0.12642,117370.0,117360.0,2.17929842]
[1753144487938,0.12642,117370.0,117360.0,2.13349377]
[1753144488438,0.12642,117370.0,117360.0,2.17945537]
[1753144488642,0.12642,117370.0,117360.0,2.47585537]
[1753144492648,0.12642,117370.0,117360.0,2.30544737]
[1753144493245,0.63383,117390.0,117380.0,0.2553002]
[1753144493453,0.16341,117390.0,117380.0,0.9461002]
[1753144493743,0.55379308,117390.0,117380.0,0.9461002]
[1753144493947,0.20951,117390.0,117380.0,0.9461002]
[1753144494148,0.55379308,117390.0,117380.0,0.9461002]
[1753144494349,0.21151,117390.0,117380.0,0.9461002]
[1753144494650,0.55579308,117390.0,117380.0,0.9461002]
[1753144494850,0.55879308,117390.0,117380.0,0.9461002]
[1753144495448,0.21451,117390.0,117380.0,0.5853002]
[1753144495654,0.21451,117390.0,117380.0,1.20524822]
[1753144495953,0.18637,117390.0,117380.0,1.56604822]
[1753144496249,0.16841,117390.0,117380.0,1.9103313]
[1753144496444,0.15202,117390.0,117380.0,1.9103313]
[1753144496647,0.12348,117390.0,117380.0,1.9103313]
[1753144496852,0.05257,117420.0,117410.0,0.1702667]
[1753144497149,0.16341,117420.0,117410.0,0.99514669]
[1753144497853,0.16841,117420.0,117410.0,0.99514669]
[1753144498146,0.22151,117420.0,117410.0,0.63697669]
[1753144498543,0.3917622,117420.0,117410.0,0.63697669]
[1753144498754,1.08584528,117420.0,117410.0,0.25242669]
[1753144499049,1.08684528,117420.0,117410.0,0.19035669]
[1753144499845,1.08684528,117420.0,117410.0,0.55739669]
[1753144500044,0.91659308,117420.0,117410.0,0.59697669]
[1753144500244,1.17367,117420.0,117410.0,0.59697669]
[1753144500448,1.15715308,117420.0,117410.0,0.59697669]